[Event "Elite Hotels Open 2024"]
[Site "Elite Stadshotellet, Kungsgatan 6, Vaxjo, Sweden"]
[Date "2024.02.10"]
[Round "5.5"]
[White "Mashhadi, Peyman"]
[Black "Jepson, Christian"]
[Result "0-1"]
[TimeControl "15 minutes + 5 seconds per move from move one (Round 1 - 4) / 90 minutes + 30 seconds per move from move one (Round 5 - 8)"]
[BlackTitle "IM"]
[WhiteFideId "1768581"]
[BlackFideId "1701185"]
[WhiteElo "2073"]
[BlackElo "2386"]

1. Nf3 {[%clk 01:30:50]} {[%emt 00:00:08]} Nf6 {[%clk 01:30:39]} {[%emt
00:00:22]} 2. d4 {[%clk 01:31:10]} {[%emt 00:00:10]} e6 {[%clk 01:30:54]}
{[%emt 00:00:15]} 3. c4 {[%clk 01:31:07]} {[%emt 00:00:33]} c5 {[%clk
01:31:11]} {[%emt 00:00:14]} 4. d5 {[%clk 01:29:42]} {[%emt 00:01:55]} d6
{[%clk 01:31:32]} {[%emt 00:00:09]} 5. Nc3 {[%clk 01:28:27]} {[%emt 00:01:44]}
exd5 {[%clk 01:27:16]} {[%emt 00:04:47]} 6. cxd5 {[%clk 01:28:28]} {[%emt
00:00:29]} g6 {[%clk 01:27:34]} {[%emt 00:00:12]} 7. Bf4 {[%clk 01:21:06]}
{[%emt 00:07:51]} a6 {[%clk 01:27:09]} {[%emt 00:00:57]} 8. a4 {[%clk
01:16:57]} {[%emt 00:04:40]} Bg7 {[%clk 01:26:24]} {[%emt 00:01:14]} 9. e4
{[%clk 01:14:51]} {[%emt 00:02:35]} O-O {[%clk 01:25:46]} {[%emt 00:01:08]} 10.
Bd3 {[%clk 01:14:25]} {[%emt 00:00:56]} Bg4 {[%clk 01:22:58]} {[%emt 00:03:19]}
11. h3 {[%clk 01:13:05]} {[%emt 00:01:50]} Bxf3 {[%clk 01:23:21]} {[%emt
00:00:07]} 12. Qxf3 {[%clk 01:13:00]} {[%emt 00:00:34]} Ne8 {[%clk 01:21:08]}
{[%emt 00:02:43]} 13. O-O {[%clk 01:07:48]} {[%emt 00:05:42]} Nd7 {[%clk
01:21:32]} {[%emt 00:00:07]} 14. Rab1 {[%clk 01:04:38]} {[%emt 00:03:41]} Rb8
{[%clk 01:19:19]} {[%emt 00:02:42]} 15. Qg3 {[%clk 00:58:39]} {[%emt 00:06:28]}
Be5 {[%clk 00:38:44]} {[%emt 00:41:05]} 16. Bxe5 {[%clk 00:55:19]} {[%emt
00:03:50]} dxe5 {[%clk 00:39:08]} {[%emt 00:00:06]} 17. f4 {[%clk 00:48:22]}
{[%emt 00:07:27]} exf4 {[%clk 00:37:48]} {[%emt 00:01:51]} 18. Qxf4 {[%clk
00:48:18]} {[%emt 00:00:33]} Qe7 {[%clk 00:38:08]} {[%emt 00:00:10]} 19. Nd1
{[%clk 00:39:01]} {[%emt 00:09:47]} Ne5 {[%clk 00:32:46]} {[%emt 00:05:52]} 20.
Nf2 {[%clk 00:38:14]} {[%emt 00:01:16]} Nd6 {[%clk 00:32:28]} {[%emt 00:00:48]}
21. Rbe1 {[%clk 00:36:34]} {[%emt 00:02:11]} f6 {[%clk 00:30:17]} {[%emt
00:02:40]} 22. Bc2 {[%clk 00:35:34]} {[%emt 00:01:30]} c4 {[%clk 00:29:10]}
{[%emt 00:01:37]} 23. Ng4 {[%clk 00:30:16]} {[%emt 00:05:48]} Nxg4 {[%clk
00:28:39]} {[%emt 00:01:01]} 24. Qxg4 {[%clk 00:30:16]} {[%emt 00:00:29]} Qe5
{[%clk 00:26:22]} {[%emt 00:02:48]} 25. h4 {[%clk 00:18:22]} {[%emt 00:12:25]}
Rbe8 {[%clk 00:25:41]} {[%emt 00:01:11]} 26. h5 {[%clk 00:13:54]} {[%emt
00:04:58]} Qxh5 {[%clk 00:25:28]} {[%emt 00:00:43]} 27. Qxh5 {[%clk 00:13:50]}
{[%emt 00:00:33]} gxh5 {[%clk 00:25:55]} {[%emt 00:00:03]} 28. Rf4 {[%clk
00:13:06]} {[%emt 00:01:15]} Re5 {[%clk 00:26:11]} {[%emt 00:00:14]} 29. Kf2
{[%clk 00:10:40]} {[%emt 00:02:56]} Kg7 {[%clk 00:12:51]} {[%emt 00:13:50]} 30.
Ke3 {[%clk 00:09:40]} {[%emt 00:01:29]} Rg5 {[%clk 00:07:16]} {[%emt 00:06:05]}
31. Re2 {[%clk 00:09:07]} {[%emt 00:01:03]} Nf7 {[%clk 00:03:18]} {[%emt
00:04:28]} 32. Kd4 {[%clk 00:08:25]} {[%emt 00:01:12]} Ne5 {[%clk 00:03:43]}
{[%emt 00:00:05]} 33. Kc5 {[%clk 00:07:26]} {[%emt 00:01:30]} b5 {[%clk
00:03:46]} {[%emt 00:00:27]} 34. a5 {[%clk 00:07:17]} {[%emt 00:00:38]} Rb8
{[%clk 00:02:26]} {[%emt 00:01:50]} 35. Kd6 {[%clk 00:04:32]} {[%emt 00:03:16]}
Rb7 {[%clk 00:02:02]} {[%emt 00:00:54]} 36. Ref2 {[%clk 00:03:40]} {[%emt
00:01:22]} Rg6 {[%clk 00:02:16]} {[%emt 00:00:16]} 37. Rf5 {[%clk 00:03:31]}
{[%emt 00:00:39]} b4 {[%clk 00:01:58]} {[%emt 00:00:48]} 38. Ba4 {[%clk
00:02:58]} {[%emt 00:01:02]} b3 {[%clk 00:01:57]} {[%emt 00:00:31]} 39. Bc6
{[%clk 00:02:59]} {[%emt 00:00:29]} Rb4 {[%clk 00:01:43]} {[%emt 00:00:45]} 40.
Kc7 {[%clk 00:01:22]} {[%emt 00:02:06]} c3 {[%clk 00:01:47]} {[%emt 00:00:27]}
41. bxc3 {[%clk 00:00:37]} {[%emt 00:01:15]} b2 {[%clk 00:02:06]} {[%emt
00:00:11]} 42. Rxb2 {[%clk 00:00:54]} {[%emt 00:00:13]} Rxb2 {[%clk 00:02:34]}
{[%emt 00:00:01]} 43. d6 {[%clk 00:00:59]} {[%emt 00:00:26]} Rg5 {[%clk
00:00:47]} {[%emt 00:02:16]} 44. Rxe5 {[%clk 00:00:37]} {[%emt 00:00:52]} Rxe5
{[%clk 00:01:14]} {[%emt 00:00:04]} 45. d7 {[%clk 00:00:59]} {[%emt 00:00:08]}
Re7 {[%clk 00:01:39]} {[%emt 00:00:05]} 46. Kd6 {[%clk 00:00:46]} {[%emt
00:00:44]} Rxd7+ {[%clk 00:02:04]} {[%emt 00:00:05]} 47. Bxd7 {[%clk 00:00:58]}
{[%emt 00:00:18]} Rxg2 {[%clk 00:01:33]} {[%emt 00:01:00]} 48. c4 {[%clk
00:01:15]} {[%emt 00:00:13]} Rd2+ {[%clk 00:01:05]} {[%emt 00:00:58]} 49. Kc6
{[%clk 00:01:20]} {[%emt 00:00:25]} h4 {[%clk 00:01:10]} {[%emt 00:00:26]} 50.
c5 {[%clk 00:01:44]} {[%emt 00:00:06]} Rxd7 {[%clk 00:00:52]} {[%emt 00:00:48]}
51. Kxd7 {[%clk 00:02:08]} {[%emt 00:00:06]} h3 {[%clk 00:01:20]} {[%emt
00:00:02]} 52. c6 {[%clk 00:02:33]} {[%emt 00:00:05]} h2 {[%clk 00:01:46]}
{[%emt 00:00:03]} 53. c7 {[%clk 00:03:00]} {[%emt 00:00:03]} h1=Q {[%clk
00:02:12]} {[%emt 00:00:04]} 54. c8=Q {[%clk 00:03:14]} {[%emt 00:00:17]} Qh3+
{[%clk 00:02:17]} {[%emt 00:00:23]} 55. Kc7 {[%clk 00:03:41]} {[%emt 00:00:04]}
Qxc8+ {[%clk 00:02:09]} {[%emt 00:00:38]} 56. Kxc8 {[%clk 00:04:08]} {[%emt
00:00:04]} h5 {[%clk 00:02:32]} {[%emt 00:00:06]} 57. Kb7 {[%clk 00:04:36]}
{[%emt 00:00:03]} h4 {[%clk 00:02:53]} {[%emt 00:00:09]} 58. Kxa6 {[%clk
00:05:01]} {[%emt 00:00:05]} h3 {[%clk 00:03:19]} {[%emt 00:00:04]} 0-1

[Event "Elite Hotels Open 2024"]
[Site "Elite Stadshotellet, Kungsgatan 6, Vaxjo, Sweden"]
[Date "2024.02.10"]
[Round "5.6"]
[White "Akesson, Ralf"]
[Black "Ostlund, Joar"]
[Result "0-1"]
[TimeControl "15 minutes + 5 seconds per move from move one (Round 1 - 4) / 90 minutes + 30 seconds per move from move one (Round 5 - 8)"]
[WhiteTitle "GM"]
[BlackTitle "FM"]
[WhiteFideId "1700120"]
[BlackFideId "1735020"]
[WhiteElo "2378"]
[BlackElo "2327"]

1. c4 {[%clk 01:30:08]} {[%emt 00:00:50]} e6 {[%clk 01:30:39]} {[%emt
00:00:22]} 2. Nf3 {[%clk 01:29:52]} {[%emt 00:00:46]} Nf6 {[%clk 01:30:38]}
{[%emt 00:00:31]} 3. g3 {[%clk 01:30:00]} {[%emt 00:00:22]} d5 {[%clk
01:30:45]} {[%emt 00:00:24]} 4. Bg2 {[%clk 01:30:02]} {[%emt 00:00:27]} dxc4
{[%clk 01:30:08]} {[%emt 00:01:07]} 5. Qa4+ {[%clk 01:29:39]} {[%emt 00:00:53]}
Nbd7 {[%clk 01:30:19]} {[%emt 00:00:19]} 6. Qxc4 {[%clk 01:28:08]} {[%emt
00:02:02]} c5 {[%clk 01:30:18]} {[%emt 00:00:31]} 7. O-O {[%clk 01:27:20]}
{[%emt 00:01:18]} b6 {[%clk 01:25:55]} {[%emt 00:04:54]} 8. b3 {[%clk
01:21:01]} {[%emt 00:06:49]} Bb7 {[%clk 01:25:03]} {[%emt 00:01:22]} 9. Bb2
{[%clk 01:21:22]} {[%emt 00:00:08]} Bd6 {[%clk 01:21:40]} {[%emt 00:03:53]} 10.
Qc2 {[%clk 01:20:34]} {[%emt 00:01:19]} O-O {[%clk 01:20:42]} {[%emt 00:01:27]}
11. d3 {[%clk 01:20:03]} {[%emt 00:01:01]} Rc8 {[%clk 01:18:02]} {[%emt
00:03:11]} 12. Nbd2 {[%clk 01:19:24]} {[%emt 00:01:09]} Qc7 {[%clk 01:10:54]}
{[%emt 00:07:37]} 13. Nc4 {[%clk 01:11:05]} {[%emt 00:08:50]} Be7 {[%clk
01:10:51]} {[%emt 00:00:33]} 14. a4 {[%clk 01:09:02]} {[%emt 00:02:33]} a6
{[%clk 01:09:14]} {[%emt 00:02:08]} 15. e4 {[%clk 01:05:44]} {[%emt 00:03:47]}
b5 {[%clk 01:02:58]} {[%emt 00:06:46]} 16. Ne3 {[%clk 01:04:38]} {[%emt
00:01:35]} Bd6 {[%clk 00:58:20]} {[%emt 00:05:09]} 17. axb5 {[%clk 01:02:55]}
{[%emt 00:02:14]} axb5 {[%clk 00:58:35]} {[%emt 00:00:15]} 18. Ra7 {[%clk
01:00:46]} {[%emt 00:02:38]} Be7 {[%clk 00:47:50]} {[%emt 00:11:14]} 19. e5
{[%clk 00:56:14]} {[%emt 00:05:02]} Nd5 {[%clk 00:46:07]} {[%emt 00:02:13]} 20.
Nxd5 {[%clk 00:52:32]} {[%emt 00:04:12]} exd5 {[%clk 00:46:29]} {[%emt
00:00:08]} 21. Nh4 {[%clk 00:30:37]} {[%emt 00:22:25]} Qb8 {[%clk 00:29:45]}
{[%emt 00:17:15]} 22. Rfa1 {[%clk 00:24:20]} {[%emt 00:06:47]} Bxh4 {[%clk
00:15:40]} {[%emt 00:14:35]} 23. gxh4 {[%clk 00:24:34]} {[%emt 00:00:16]} Rc7
{[%clk 00:15:55]} {[%emt 00:00:15]} 24. f4 {[%clk 00:21:33]} {[%emt 00:03:30]}
d4 {[%clk 00:14:46]} {[%emt 00:01:40]} 25. Bxb7 {[%clk 00:20:27]} {[%emt
00:01:36]} Rxb7 {[%clk 00:15:11]} {[%emt 00:00:05]} 26. R7a6 {[%clk 00:20:27]}
{[%emt 00:00:29]} Rb6 {[%clk 00:13:10]} {[%emt 00:02:32]} 27. Qg2 {[%clk
00:20:17]} {[%emt 00:00:39]} b4 {[%clk 00:08:55]} {[%emt 00:04:45]} 28. Qd5
{[%clk 00:19:06]} {[%emt 00:01:40]} Rxa6 {[%clk 00:07:55]} {[%emt 00:01:31]} 29.
Rxa6 {[%clk 00:19:28]} {[%emt 00:00:08]} Qb5 {[%clk 00:08:22]} {[%emt
00:00:04]} 30. Qc4 {[%clk 00:11:06]} {[%emt 00:08:51]} Qb7 {[%clk 00:08:45]}
{[%emt 00:00:08]} 31. Ra1 {[%clk 00:09:50]} {[%emt 00:01:45]} Qf3 {[%clk
00:06:41]} {[%emt 00:02:35]} 32. Rf1 {[%clk 00:09:58]} {[%emt 00:00:22]} Qg4+
{[%clk 00:04:58]} {[%emt 00:02:13]} 33. Kh1 {[%clk 00:10:20]} {[%emt 00:00:08]}
Qe2 {[%clk 00:05:19]} {[%emt 00:00:09]} 34. Rg1 {[%clk 00:02:59]} {[%emt
00:07:51]} Qxb2 {[%clk 00:04:45]} {[%emt 00:01:04]} 35. Qd5 {[%clk 00:03:04]}
{[%emt 00:00:24]} Qf2 {[%clk 00:03:23]} {[%emt 00:01:52]} 0-1

[Event "Elite Hotels Open 2024"]
[Site "Elite Stadshotellet, Kungsgatan 6, Vaxjo, Sweden"]
[Date "2024.02.10"]
[Round "5.7"]
[White "Eriksson, Kristian"]
[Black "Lindberg, Bengt"]
[Result "0-1"]
[TimeControl "15 minutes + 5 seconds per move from move one (Round 1 - 4) / 90 minutes + 30 seconds per move from move one (Round 5 - 8)"]
[BlackTitle "IM"]
[WhiteFideId "1705172"]
[BlackFideId "1700359"]
[WhiteElo "2035"]
[BlackElo "2331"]

1. e4 {[%clk 01:30:53]} {[%emt 00:00:05]} c5 {[%clk 01:30:42]} {[%emt
00:00:19]} 2. Nf3 {[%clk 01:31:07]} {[%emt 00:00:16]} e6 {[%clk 01:30:58]}
{[%emt 00:00:14]} 3. Nc3 {[%clk 01:31:10]} {[%emt 00:00:27]} Nc6 {[%clk
01:31:10]} {[%emt 00:00:17]} 4. Bb5 {[%clk 01:31:15]} {[%emt 00:00:26]} Nd4
{[%clk 01:31:02]} {[%emt 00:00:38]} 5. Bc4 {[%clk 01:31:18]} {[%emt 00:00:27]}
a6 {[%clk 01:30:12]} {[%emt 00:01:19]} 6. d3 {[%clk 01:31:12]} {[%emt
00:00:36]} b5 {[%clk 01:27:30]} {[%emt 00:03:13]} 7. Bb3 {[%clk 01:31:32]}
{[%emt 00:00:10]} Nxb3 {[%clk 01:26:34]} {[%emt 00:01:27]} 8. axb3 {[%clk
01:31:53]} {[%emt 00:00:09]} Bb7 {[%clk 01:26:53]} {[%emt 00:00:11]} 9. O-O
{[%clk 01:31:18]} {[%emt 00:01:05]} d6 {[%clk 01:22:28]} {[%emt 00:04:55]} 10.
Be3 {[%clk 01:26:20]} {[%emt 00:05:27]} Nf6 {[%clk 01:20:38]} {[%emt 00:02:21]}
11. Nd2 {[%clk 01:23:40]} {[%emt 00:03:10]} Be7 {[%clk 01:20:09]} {[%emt
00:00:59]} 12. Qf3 {[%clk 01:18:07]} {[%emt 00:06:02]} O-O {[%clk 01:17:34]}
{[%emt 00:03:05]} 13. Qg3 {[%clk 01:14:59]} {[%emt 00:03:38]} Kh8 {[%clk
01:12:57]} {[%emt 00:05:07]} 14. Rfe1 {[%clk 01:01:56]} {[%emt 00:13:34]} h6
{[%clk 00:57:13]} {[%emt 00:16:14]} 15. Qh3 {[%clk 00:50:40]} {[%emt 00:11:45]}
Nh7 {[%clk 00:51:44]} {[%emt 00:05:59]} 16. Rad1 {[%clk 00:44:55]} {[%emt
00:06:16]} Qc7 {[%clk 00:51:22]} {[%emt 00:00:53]} 17. Ne2 {[%clk 00:40:02]}
{[%emt 00:05:22]} Rae8 {[%clk 00:47:22]} {[%emt 00:04:29]} 18. Qg3 {[%clk
00:38:06]} {[%emt 00:02:27]} Qd8 {[%clk 00:42:36]} {[%emt 00:05:16]} 19. d4
{[%clk 00:33:30]} {[%emt 00:05:06]} cxd4 {[%clk 00:42:21]} {[%emt 00:00:45]} 20.
Bxd4 {[%clk 00:32:50]} {[%emt 00:01:09]} e5 {[%clk 00:42:12]} {[%emt 00:00:39]}
21. Bc3 {[%clk 00:23:28]} {[%emt 00:09:53]} f5 {[%clk 00:38:43]} {[%emt
00:03:59]} 22. Nf4 {[%clk 00:22:48]} {[%emt 00:01:10]} Rf7 {[%clk 00:35:52]}
{[%emt 00:03:20]} 23. Ng6+ {[%clk 00:14:04]} {[%emt 00:09:15]} Kg8 {[%clk
00:36:18]} {[%emt 00:00:04]} 24. Nxe7+ {[%clk 00:13:55]} {[%emt 00:00:39]} Qxe7
{[%clk 00:36:28]} {[%emt 00:00:18]} 25. b4 {[%clk 00:13:05]} {[%emt 00:01:22]}
Ref8 {[%clk 00:32:59]} {[%emt 00:03:58]} 26. f3 {[%clk 00:10:57]} {[%emt
00:02:39]} Ng5 {[%clk 00:33:07]} {[%emt 00:00:21]} 27. exf5 {[%clk 00:09:36]}
{[%emt 00:01:53]} Rxf5 {[%clk 00:33:23]} {[%emt 00:00:13]} 28. Ne4 {[%clk
00:08:00]} {[%emt 00:02:05]} Bxe4 {[%clk 00:33:37]} {[%emt 00:00:17]} 29. fxe4
{[%clk 00:07:38]} {[%emt 00:00:52]} Rf4 {[%clk 00:31:19]} {[%emt 00:02:47]} 30.
Qd3 {[%clk 00:05:52]} {[%emt 00:02:16]} Qa7+ {[%clk 00:22:55]} {[%emt
00:08:54]} 31. Kh1 {[%clk 00:06:07]} {[%emt 00:00:14]} Qf2 {[%clk 00:22:47]}
{[%emt 00:00:38]} 32. h3 {[%clk 00:04:52]} {[%emt 00:01:46]} Qh4 {[%clk
00:21:26]} {[%emt 00:01:51]} 33. Qxd6 {[%clk 00:04:04]} {[%emt 00:01:19]} Nxe4
{[%clk 00:18:01]} {[%emt 00:03:55]} 34. Qxe5 {[%clk 00:03:42]} {[%emt
00:00:52]} Nf2+ {[%clk 00:18:14]} {[%emt 00:00:16]} 35. Kg1 {[%clk 00:03:01]}
{[%emt 00:01:11]} Nxh3+ {[%clk 00:18:36]} {[%emt 00:00:09]} 36. gxh3 {[%clk
00:03:08]} {[%emt 00:00:23]} Qg3+ {[%clk 00:18:58]} {[%emt 00:00:08]} 37. Kh1
{[%clk 00:03:27]} {[%emt 00:00:10]} Qxh3+ {[%clk 00:19:22]} {[%emt 00:00:07]}
0-1

[Event "Elite Hotels Open 2024"]
[Site "Elite Stadshotellet, Kungsgatan 6, Vaxjo, Sweden"]
[Date "2024.02.10"]
[Round "5.8"]
[White "Hector, Jonny"]
[Black "Karlsson, Jorgen"]
[Result "1-0"]
[TimeControl "15 minutes + 5 seconds per move from move one (Round 1 - 4) / 90 minutes + 30 seconds per move from move one (Round 5 - 8)"]
[WhiteTitle "GM"]
[WhiteFideId "1700090"]
[BlackFideId "1711679"]
[WhiteElo "2449"]
[BlackElo "2056"]

1. e4 {[%clk 01:30:54]} {[%emt 00:00:04]} d6 {[%clk 01:30:56]} {[%emt
00:00:06]} 2. d4 {[%clk 01:31:12]} {[%emt 00:00:10]} Nd7 {[%clk 01:31:21]}
{[%emt 00:00:07]} 3. f4 {[%clk 01:28:02]} {[%emt 00:03:39]} e6 {[%clk
01:28:26]} {[%emt 00:03:25]} 4. Nf3 {[%clk 01:26:20]} {[%emt 00:02:12]} Ne7
{[%clk 01:27:47]} {[%emt 00:01:09]} 5. Bd3 {[%clk 01:23:20]} {[%emt 00:03:30]}
c5 {[%clk 01:23:15]} {[%emt 00:05:03]} 6. O-O {[%clk 01:19:51]} {[%emt
00:03:57]} cxd4 {[%clk 01:21:01]} {[%emt 00:02:46]} 7. Nxd4 {[%clk 01:15:21]}
{[%emt 00:05:00]} Nc6 {[%clk 01:19:05]} {[%emt 00:02:26]} 8. Nf3 {[%clk
01:11:03]} {[%emt 00:04:47]} Nc5 {[%clk 01:13:40]} {[%emt 00:05:55]} 9. Nc3
{[%clk 01:09:55]} {[%emt 00:01:37]} a6 {[%clk 01:11:47]} {[%emt 00:02:25]} 10.
Be2 {[%clk 01:05:54]} {[%emt 00:04:30]} b5 {[%clk 01:08:48]} {[%emt 00:03:30]}
11. a3 {[%clk 01:05:49]} {[%emt 00:00:35]} Bb7 {[%clk 01:08:32]} {[%emt
00:00:46]} 12. b4 {[%clk 00:59:41]} {[%emt 00:06:38]} Nd7 {[%clk 01:08:48]}
{[%emt 00:00:15]} 13. Qe1 {[%clk 00:57:31]} {[%emt 00:02:40]} Rc8 {[%clk
01:06:11]} {[%emt 00:03:06]} 14. Bd3 {[%clk 00:56:22]} {[%emt 00:01:38]} Be7
{[%clk 01:01:56]} {[%emt 00:04:46]} 15. Bd2 {[%clk 00:54:59]} {[%emt 00:01:54]}
Bf6 {[%clk 00:55:12]} {[%emt 00:07:14]} 16. Rd1 {[%clk 00:54:14]} {[%emt
00:01:15]} Nd4 {[%clk 00:53:27]} {[%emt 00:02:14]} 17. Kh1 {[%clk 00:49:10]}
{[%emt 00:05:34]} Qc7 {[%clk 00:49:14]} {[%emt 00:04:44]} 18. Nxd4 {[%clk
00:46:50]} {[%emt 00:02:49]} Bxd4 {[%clk 00:49:37]} {[%emt 00:00:08]} 19. Ne2
{[%clk 00:46:28]} {[%emt 00:00:52]} Bf6 {[%clk 00:49:10]} {[%emt 00:00:57]} 20.
c3 {[%clk 00:39:49]} {[%emt 00:07:09]} Nb6 {[%clk 00:48:46]} {[%emt 00:00:54]}
21. Nd4 {[%clk 00:39:29]} {[%emt 00:00:49]} Nc4 {[%clk 00:48:39]} {[%emt
00:00:37]} 22. Bc1 {[%clk 00:39:15]} {[%emt 00:00:44]} g6 {[%clk 00:40:42]}
{[%emt 00:08:27]} 23. Bxc4 {[%clk 00:33:25]} {[%emt 00:06:21]} bxc4 {[%clk
00:36:27]} {[%emt 00:04:44]} 24. Nf3 {[%clk 00:30:08]} {[%emt 00:03:47]} Bg7
{[%clk 00:31:51]} {[%emt 00:05:07]} 25. f5 {[%clk 00:28:49]} {[%emt 00:01:49]}
O-O {[%clk 00:28:38]} {[%emt 00:03:43]} 26. Bf4 {[%clk 00:27:27]} {[%emt
00:01:52]} e5 {[%clk 00:28:11]} {[%emt 00:00:57]} 27. Bc1 {[%clk 00:26:20]}
{[%emt 00:01:36]} Rcd8 {[%clk 00:25:04]} {[%emt 00:03:37]} 28. Qh4 {[%clk
00:20:52]} {[%emt 00:05:57]} f6 {[%clk 00:25:06]} {[%emt 00:00:29]} 29. fxg6
{[%clk 00:20:57]} {[%emt 00:00:25]} hxg6 {[%clk 00:25:30]} {[%emt 00:00:07]} 30.
Qg4 {[%clk 00:20:25]} {[%emt 00:01:01]} Qf7 {[%clk 00:24:48]} {[%emt 00:01:12]}
31. Nh4 {[%clk 00:18:08]} {[%emt 00:02:47]} Kh7 {[%clk 00:23:15]} {[%emt
00:02:03]} 32. Rf3 {[%clk 00:14:47]} {[%emt 00:03:50]} Bc8 {[%clk 00:22:51]}
{[%emt 00:00:55]} 33. Qg3 {[%clk 00:14:58]} {[%emt 00:00:20]} Be6 {[%clk
00:17:34]} {[%emt 00:05:47]} 34. Rf2 {[%clk 00:14:45]} {[%emt 00:00:43]} d5
{[%clk 00:15:35]} {[%emt 00:02:29]} 35. Rfd2 {[%clk 00:13:04]} {[%emt
00:02:11]} d4 {[%clk 00:11:14]} {[%emt 00:04:50]} 36. cxd4 {[%clk 00:13:19]}
{[%emt 00:00:15]} exd4 {[%clk 00:11:23]} {[%emt 00:00:22]} 37. Rxd4 {[%clk
00:13:24]} {[%emt 00:00:25]} Rxd4 {[%clk 00:11:46]} {[%emt 00:00:07]} 38. Rxd4
{[%clk 00:13:49]} {[%emt 00:00:04]} f5 {[%clk 00:11:53]} {[%emt 00:00:23]} 39.
e5 {[%clk 00:11:56]} {[%emt 00:02:23]} c3 {[%clk 00:10:00]} {[%emt 00:02:24]}
40. Nf3 {[%clk 00:11:12]} {[%emt 00:01:14]} Kg8 {[%clk 00:08:19]} {[%emt
00:02:11]} 41. Rd6 {[%clk 00:09:44]} {[%emt 00:01:57]} f4 {[%clk 00:06:07]}
{[%emt 00:02:42]} 42. Qe1 {[%clk 00:08:54]} {[%emt 00:01:20]} Qf5 {[%clk
00:05:15]} {[%emt 00:01:23]} 43. Rc6 {[%clk 00:06:14]} {[%emt 00:03:09]} Bd5
{[%clk 00:05:15]} {[%emt 00:00:31]} 44. Rxc3 {[%clk 00:05:57]} {[%emt
00:00:47]} Bxf3 {[%clk 00:05:08]} {[%emt 00:00:37]} 45. gxf3 {[%clk 00:04:32]}
{[%emt 00:01:54]} Qxe5 {[%clk 00:05:06]} {[%emt 00:00:32]} 46. Qxe5 {[%clk
00:04:41]} {[%emt 00:00:21]} Bxe5 {[%clk 00:05:31]} {[%emt 00:00:05]} 47. Rc5
{[%clk 00:03:56]} {[%emt 00:01:15]} Re8 {[%clk 00:05:20]} {[%emt 00:00:41]} 48.
Kg2 {[%clk 00:04:05]} {[%emt 00:00:21]} Kf7 {[%clk 00:03:38]} {[%emt 00:02:12]}
49. Kh3 {[%clk 00:04:06]} {[%emt 00:00:29]} Ke6 {[%clk 00:02:01]} {[%emt
00:02:07]} 50. Kg4 {[%clk 00:03:59]} {[%emt 00:00:37]} g5 {[%clk 00:02:21]}
{[%emt 00:00:10]} 51. Rc6+ {[%clk 00:04:10]} {[%emt 00:00:19]} Kd5 {[%clk
00:02:43]} {[%emt 00:00:09]} 52. Rxa6 {[%clk 00:03:09]} {[%emt 00:01:31]} Rc8
{[%clk 00:03:05]} {[%emt 00:00:07]} 53. Ra5+ {[%clk 00:03:20]} {[%emt
00:00:19]} Kd6 {[%clk 00:03:23]} {[%emt 00:00:13]} 54. Rc5 {[%clk 00:03:24]}
{[%emt 00:00:26]} Rh8 {[%clk 00:03:07]} {[%emt 00:00:45]} 55. Rxe5 {[%clk
00:02:21]} {[%emt 00:01:33]} 1-0